bitfinex-derivatives/quotes_ETHF0:USTF0_20260120
["timestamp","ask_amount","ask_price","bid_price","bid_amount"]
[1768940710003,0.00369121,3007.5,3005.8,2.18663348]
[1768940710200,1.15439592,3007.4,3005.8,2.18663348]
[1768940710402,0.28843233,3007.3,3005.8,2.18663348]
[1768940710708,0.00369121,3007.5,3005.8,2.18663348]
[1768940711005,1.15443496,3007.4,3005.8,2.18663348]
[1768940711302,0.00369121,3007.5,3005.8,2.18663348]
[1768940711303,0.28842078,3007.3,3005.8,2.18663348]
[1768940711504,0.00369121,3007.5,3005.8,2.18663348]
[1768940711700,1.15414864,3007.4,3005.9,0.16654]
[1768940711898,0.28841207,3007.3,3005.9,2.18662348]
[1768940712103,0.00369121,3007.5,3005.9,2.18662348]
[1768940712399,1.15417307,3007.4,3005.9,2.18662348]
[1768940712702,0.28846989,3007.3,3005.9,2.18662348]
[1768940713004,2.08923947,3007.4,3006.0,1.922]
[1768940713205,0.28848064,3007.3,3006.0,1.922]
[1768940713500,2.37772239,3007.2,3006.1,1.922]
[1768940713698,2.08923947,3007.2,3005.5,2.18664348]
[1768940713898,2.08923947,3007.2,3005.6,1.922]
[1768940714105,2.08923947,3007.0,3005.6,1.922]
[1768940714304,2.08923947,3007.0,3005.5,0.16656]
[1768940714499,2.08923947,3007.0,3005.5,2.08856]
[1768940714705,2.08923947,3007.4,3005.6,2.18664348]
[1768940714906,2.03419334,3007.2,3005.6,3.98180201]
[1768940715102,2.32270147,3007.1,3005.6,0.16656]
[1768940715307,2.03419334,3007.1,3005.6,0.16656]
[1768940716409,0.16646,3007.4,3005.7,2.164604]
[1768940716613,1.15467374,3007.3,3005.7,2.164604]
[1768940716802,2.32276871,3007.2,3005.7,2.164604]
[1768940717103,2.03419334,3007.2,3005.6,1.96171853]
[1768940717300,2.03419334,3007.2,3005.6,0.16656]
[1768940717502,2.03419334,3007.0,3005.6,2.08856]
[1768940717912,2.20065334,3007.4,3005.6,6.04832253]
[1768940718209,0.28862483,3007.3,3006.0,1.79515853]
[1768940718412,0.28863758,3007.2,3006.0,3.95976253]
[1768940718716,0.00369121,3007.5,3006.0,3.95976253]
[1768940718912,1.15492688,3007.4,3006.0,3.95976253]
[1768940719114,0.00369121,3007.5,3006.0,3.95976253]
[1768940719115,0.28863639,3007.3,3006.0,3.95976253]
[1768940719305,0.28863639,3007.2,3006.0,3.95976253]
[1768940719611,0.00369121,3007.5,3006.0,3.95976253]
[1768940719807,1.15507192,3007.4,3006.1,2.331134]
[1768940720008,0.00369121,3007.5,3006.1,2.331134]
[1768940720311,2.03788455,3007.5,3006.1,0.16653]
[1768940720900,0.28864626,3007.4,3006.1,0.16653]
[1768940721105,2.03788455,3007.5,3006.1,0.16653]
[1768940721308,0.28865908,3007.4,3006.1,0.16653]
[1768940721512,2.03788455,3007.5,3006.1,2.08853]
[1768940721712,0.28866331,3007.4,3006.1,2.08853]
[1768940721913,0.28866654,3007.3,3006.1,0.16653]
[1768940722112,2.03419334,3007.4,3006.0,1.922]
[1768940722309,0.28866192,3007.3,3005.7,2.164604]
[1768940722612,2.03419334,3007.4,3005.8,1.922]
[1768940722816,2.32285411,3007.3,3005.8,1.922]
[1768940723004,2.03419334,3007.3,3005.8,1.922]
[1768940725819,2.03419334,3007.3,3005.8,4.93240124]
[1768940727818,2.03419334,3007.1,3005.8,3.01040124]
[1768940728118,2.03419334,3007.1,3005.8,1.923]
[1768940728303,2.03419334,3007.1,3005.7,3.17695124]
[1768940728508,1.79515853,3007.3,3005.7,3.17695124]
[1768940728509,2.32297038,3007.0,3005.8,1.924]
[1768940728705,2.03419334,3007.0,3005.8,1.924]
[1768940729310,0.28884892,3006.9,3005.8,1.924]
[1768940729512,2.03419334,3007.0,3005.8,1.924]
[1768940730019,2.20065334,3007.4,3005.8,1.924]
[1768940730211,0.28882826,3007.3,3005.8,1.924]
[1768940730412,0.28882826,3007.2,3005.8,1.924]
[1768940730615,0.28882826,3007.1,3005.8,1.924]
[1768940730922,0.28883698,3007.0,3005.8,1.924]
[1768940731109,2.20065334,3007.4,3005.8,1.924]
[1768940731317,2.03419334,3007.2,3005.8,1.924]
[1768940731511,0.2888971,3007.1,3005.8,1.924]
[1768940731713,0.2888971,3007.0,3005.8,1.924]
[1768940732009,2.03419334,3007.2,3005.8,1.924]
[1768940732209,0.2888999,3007.1,3005.8,1.924]
[1768940732408,2.32309324,3007.0,3005.5,3.01040124]
[1768940732610,0.16647,3007.3,3005.5,3.01040124]
[1768940732611,2.32309324,3006.9,3005.5,3.01040124]
[1768940732811,2.03419334,3006.7,3005.3,1.924]
[1768940733111,2.32309324,3006.6,3005.3,1.924]
[1768940733316,0.2888999,3006.5,3005.3,1.924]
[1768940733620,0.16649,3006.9,3005.3,1.924]
[1768940733822,1.15580874,3006.8,3005.3,1.924]
[1768940734019,0.2888628,3006.7,3005.3,1.924]
[1768940734220,0.2888628,3006.7,3005.2,3.95976253]
[1768940734420,2.32305614,3006.7,3005.3,1.924]
[1768940734621,2.32305614,3006.6,3005.3,1.924]
[1768940734915,2.32305614,3006.5,3005.1,0.16659]
[1768940735119,2.03419334,3006.5,3005.2,1.924]
[1768940736626,0.16649,3006.9,3005.2,4.088604]
[1768940736814,0.28858729,3006.8,3005.2,4.088604]
[1768940737014,0.28858729,3006.7,3005.4,2.164604]
[1768940737321,2.03419334,3007.4,3005.7,1.79515853]
[1768940737511,2.03419334,3007.4,3005.8,2.164604]
[1768940737512,0.28853488,3007.3,3005.8,2.164604]
[1768940737711,0.17014121,3007.5,3005.8,2.164604]
[1768940737712,0.28853488,3007.2,3005.8,2.164604]
[1768940737917,0.17014121,3007.5,3005.8,2.164604]
[1768940738120,0.28848207,3007.4,3005.8,2.164604]
[1768940738322,0.28848207,3007.3,3005.8,2.164604]
[1768940738522,0.28848207,3007.2,3005.8,2.164604]
[1768940738821,0.17014121,3007.5,3005.8,2.164604]
[1768940739022,0.28848147,3007.4,3005.8,2.164604]
[1768940739225,0.28848147,3007.3,3005.8,2.164604]
[1768940739418,0.28848147,3007.2,3005.8,2.164604]
[1768940739617,0.00369121,3007.5,3005.8,2.164604]
[1768940739814,0.28848066,3007.4,3005.8,2.164604]
[1768940740015,0.28848066,3007.3,3005.8,2.164604]
[1768940740215,0.28848066,3007.2,3005.8,2.164604]
[1768940740415,0.00369121,3007.5,3005.8,2.164604]
[1768940740618,0.28848408,3007.4,3005.8,2.164604]
[1768940740817,0.28848408,3007.3,3005.8,2.164604]
[1768940741124,0.00369121,3007.5,3005.8,2.164604]
[1768940741125,0.28848408,3007.2,3005.8,2.164604]
[1768940741325,0.00369121,3007.5,3005.8,2.164604]
[1768940741514,0.28848732,3007.4,3005.8,2.164604]
[1768940741715,0.28848732,3007.3,3005.8,2.164604]
[1768940741914,0.28848732,3007.2,3005.8,2.164604]
[1768940742122,0.00369121,3007.5,3005.8,2.164604]
[1768940742324,0.28849128,3007.4,3005.8,2.164604]
[1768940742523,0.28849128,3007.3,3005.8,2.331154]
[1768940742714,0.28849128,3007.2,3005.8,2.331154]
[1768940742916,0.00369121,3007.5,3005.8,2.331154]
[1768940743118,2.3226832,3007.4,3005.8,2.331154]
[1768940743317,2.3226832,3007.3,3005.8,2.331154]
[1768940743517,2.3226832,3007.2,3005.5,3.01040124]
[1768940743726,2.3226832,3007.1,3005.3,4.93440124]
[1768940744026,2.03419334,3006.9,3005.3,1.924]
[1768940744212,2.03419334,3006.9,3005.3,7.1847661]
[1768940744416,2.11670332,3007.3,3005.7,1.79515853]
[1768940744618,0.00369121,3007.5,3005.8,2.08378486]
[1768940744817,1.15405206,3007.4,3005.8,2.25033486]
[1768940745119,0.28849239,3007.3,3005.8,2.25033486]
[1768940745320,0.28849239,3007.2,3005.8,2.25033486]
[1768940745521,0.00369121,3007.5,3005.8,2.25033486]
[1768940745724,0.28848049,3007.4,3005.8,2.25033486]
[1768940745925,0.28848049,3007.3,3005.8,2.25033486]
[1768940746122,0.28848049,3007.2,3005.8,2.25033486]
[1768940746323,0.00369121,3007.5,3005.8,2.25033486]
[1768940746614,0.28847111,3007.4,3005.8,2.25033486]
[1768940746819,2.31672258,3007.3,3005.8,0.16655]
[1768940747019,2.02825147,3007.1,3005.8,0.16655]
[1768940747218,0.28847111,3007.0,3005.8,0.16655]
[1768940748624,0.17014121,3007.5,3005.8,0.16655]
[1768940748625,2.19839268,3007.5,3005.8,0.16655]
[1768940748828,0.28846524,3007.4,3005.8,0.16655]
[1768940749028,0.28846524,3007.3,3005.8,0.16655]
[1768940749328,0.28848503,3007.2,3005.8,0.16655]
[1768940749526,0.28848503,3007.1,3005.8,0.16655]
[1768940749720,2.19839268,3007.5,3005.8,0.16655]
[1768940749921,1.15404043,3007.4,3005.8,0.16655]
[1768940750121,2.31674037,3007.3,3005.8,0.16655]
[1768940750320,2.31674037,3007.2,3005.9,1.924]
[1768940750526,0.2884889,3007.1,3005.9,1.924]
[1768940750732,0.2884889,3007.1,3005.8,0.16655]
[1768940751026,2.31674037,3007.1,3005.4,3.01040124]
[1768940751221,0.2884889,3007.0,3005.5,1.924]
[1768940751617,0.2884889,3007.0,3005.4,3.01040124]
[1768940751618,2.48322037,3007.0,3005.2,4.21456174]
[1768940751823,2.02825147,3006.8,3005.2,1.924]
[1768940752033,2.02825147,3006.8,3005.3,1.98068227]
[1768940753125,2.02825147,3006.8,3005.2,6.89613977]
[1768940753326,2.31683677,3006.7,3005.3,1.925]
[1768940753525,2.02825147,3006.7,3005.3,1.925]
[1768940754126,0.16648,3007.0,3005.3,1.925]
[1768940754439,0.28858735,3006.9,3005.4,1.98068227]
[1768940754730,0.16648,3007.0,3005.4,1.98068227]
[1768940754929,0.28857076,3006.9,3005.4,1.98068227]
[1768940755131,0.16648,3007.0,3005.4,1.98068227]
[1768940755334,0.28857255,3006.9,3005.4,1.98068227]
[1768940755536,0.16648,3007.0,3005.4,1.98068227]
[1768940755727,0.28858357,3006.9,3005.4,1.98068227]
[1768940755922,2.02825147,3007.1,3005.4,1.98068227]
[1768940756130,0.28858318,3007.0,3005.4,1.98068227]
[1768940756330,0.28860539,3006.9,3005.4,1.98068227]
[1768940756636,2.02825147,3007.1,3005.4,2.14725227]
[1768940756840,0.28860518,3007.0,3005.4,2.14725227]
[1768940757038,0.28860518,3006.9,3005.4,2.14725227]
[1768940757334,2.02825147,3007.1,3005.4,2.14725227]
[1768940757536,0.28862888,3007.0,3005.4,2.14725227]
[1768940757842,0.28862888,3006.9,3005.4,2.14725227]
[1768940758032,2.02825147,3007.1,3005.4,2.14725227]
[1768940758231,0.28862892,3007.0,3005.4,2.14725227]
[1768940758431,0.28862892,3006.9,3005.4,2.14725227]
[1768940758632,2.02825147,3007.1,3005.4,2.14725227]
[1768940758833,1.45239931,3007.0,3006.0,1.1637572]
[1768940759134,0.28864211,3006.9,3006.0,1.1637572]
[1768940759334,1.1637572,3007.0,3006.0,1.1637572]
[1768940759535,0.2886392,3006.9,3006.0,1.1637572]
[1768940759737,1.1637572,3007.0,3006.0,1.1637572]
[1768940759937,0.28863909,3006.9,3006.0,1.1637572]
[1768940760140,1.1637572,3007.0,3006.0,1.1637572]
[1768940760340,0.28863856,3006.9,3006.0,1.1637572]
[1768940760529,1.1637572,3007.0,3006.0,1.1637572]
[1768940760841,0.28863852,3006.9,3006.0,1.1637572]
[1768940761139,1.1637572,3007.2,3006.0,1.1637572]
[1768940761340,0.28864584,3007.1,3006.0,1.1637572]
[1768940761539,0.28864584,3007.0,3006.0,1.1637572]
[1768940761740,0.28864584,3006.9,3006.0,1.1637572]
[1768940761943,1.1637572,3007.2,3006.0,1.1637572]
[1768940762240,0.28864602,3007.1,3006.0,1.1637572]
[1768940762441,0.28864602,3007.0,3006.0,1.1637572]
[1768940762643,0.28864602,3006.9,3006.0,1.1637572]
[1768940762841,1.1637572,3007.0,3006.0,1.1637572]
[1768940763142,1.1637572,3006.6,3005.6,1.1637572]
[1768940765450,1.1637572,3006.8,3005.6,1.1637572]
[1768940765647,0.28876098,3006.7,3005.6,1.1637572]
[1768940765838,1.1637572,3006.8,3005.6,1.1637572]
[1768940766043,0.28876541,3006.7,3005.8,1.1637572]
[1768940766350,1.1637572,3007.2,3006.0,1.1637572]
[1768940766550,1.15533635,3007.1,3006.0,1.1637572]
[1768940766746,1.45257701,3007.0,3005.5,4.07324227]
[1768940766951,0.28881981,3006.9,3005.8,1.1637572]
[1768940767143,0.28881981,3006.8,3005.8,1.1637572]
[1768940767343,3.19200867,3007.0,3005.8,1.1637572]
[1768940767650,0.28884527,3006.9,3005.8,1.1637572]
[1768940767851,0.28884527,3006.8,3005.8,1.1637572]
[1768940768150,3.19200867,3007.0,3005.8,1.1637572]
[1768940768348,1.1637572,3006.8,3005.8,1.1637572]
[1768940768548,0.28885866,3006.7,3005.8,1.1637572]
[1768940768740,1.1637572,3006.8,3005.8,1.1637572]
[1768940769652,3.19200867,3007.0,3005.8,1.1637572]
[1768940769848,0.28886029,3006.9,3005.8,1.1637572]
[1768940770156,0.28886029,3006.8,3005.8,1.1637572]
[1768940770357,3.19200867,3007.0,3005.8,1.1637572]
[1768940770550,0.28888197,3006.9,3005.8,1.1637572]
[1768940770750,0.28888197,3006.8,3005.8,1.1637572]
[1768940771055,3.19200867,3007.0,3005.8,1.1637572]
[1768940771355,0.2888959,3006.9,3005.8,1.1637572]
[1768940771555,0.2888959,3006.8,3005.8,1.1637572]
[1768940771752,3.19200867,3007.0,3005.8,1.1637572]
[1768940771955,0.28889996,3006.9,3005.8,1.1637572]
[1768940772145,0.28889996,3006.8,3005.8,1.1637572]
[1768940772348,0.28889996,3006.7,3005.8,1.1637572]
[1768940772548,3.19200867,3007.0,3005.8,1.1637572]
[1768940772743,0.28891612,3006.9,3005.8,1.1637572]
[1768940772950,0.28891612,3006.8,3005.8,1.1637572]
[1768940773156,3.19200867,3007.0,3005.8,1.1637572]
[1768940773456,0.28895089,3006.9,3005.8,1.1637572]
[1768940773654,0.28895089,3006.8,3005.8,1.1637572]
[1768940773856,3.19200867,3007.0,3005.8,1.1637572]
[1768940774056,0.28895587,3006.9,3005.8,1.1637572]
[1768940774257,0.28895587,3006.8,3005.8,1.1637572]
[1768940774460,3.19200867,3007.0,3005.8,1.1637572]
[1768940774656,0.28895583,3006.9,3005.8,1.1637572]
[1768940774855,0.28895583,3006.8,3005.8,1.1637572]
[1768940775058,3.19200867,3007.0,3005.8,1.1637572]
[1768940775361,0.28898224,3006.9,3006.0,1.1637572]
[1768940775562,0.28898224,3006.8,3006.0,1.1637572]
[1768940775861,0.28898224,3006.7,3006.0,1.1637572]
[1768940776062,1.1637572,3007.2,3006.2,1.1637572]
[1768940776258,1.15540603,3007.1,3006.2,1.1637572]
[1768940776462,0.2890231,3007.0,3006.2,1.1637572]
[1768940776655,0.2890231,3006.9,3006.0,1.1637572]
[1768940776860,0.2890231,3006.8,3005.7,3.09070481]
[1768940777061,0.2890231,3006.7,3005.7,5.18176878]
[1768940777361,0.16647,3007.3,3005.7,5.18176878]
[1768940777560,1.1554555,3007.2,3005.8,2.09106397]
[1768940777760,1.1554555,3007.1,3005.8,2.09106397]
[1768940778062,0.28903844,3007.0,3005.8,2.09106397]
[1768940778261,0.28903844,3006.9,3005.8,2.09106397]
[1768940778450,1.962132,3007.4,3006.0,1.16370481]
[1768940778656,1.15541604,3007.3,3006.0,1.16370481]
[1768940778857,0.28902504,3007.2,3006.0,1.16370481]
[1768940779059,0.28902504,3007.1,3006.1,2.09106397]
[1768940779258,0.16644,3007.7,3006.3,1.16370481]
[1768940779560,0.28899854,3007.4,3006.3,1.16370481]
[1768940779761,0.28899854,3007.3,3006.3,1.16370481]
[1768940779951,0.16644,3007.7,3006.3,1.16370481]
[1768940780158,0.28898671,3007.4,3006.3,1.16370481]
[1768940780356,0.28898671,3007.3,3006.3,1.16370481]
[1768940780555,0.16644,3007.7,3006.3,1.16370481]
[1768940780756,0.28889039,3007.4,3006.3,1.16370481]
[1768940780951,0.28889039,3007.3,3006.3,1.16370481]
[1768940781154,0.16644,3007.7,3006.3,1.16370481]
[1768940781362,0.28880947,3007.4,3006.3,1.16370481]
[1768940781659,0.16644,3007.7,3006.3,1.16370481]
[1768940781660,0.28880947,3007.3,3006.3,1.16370481]
[1768940781860,0.16644,3007.7,3006.3,1.16370481]
[1768940782064,0.28880941,3007.4,3006.3,1.16370481]
[1768940782255,0.16644,3007.7,3006.3,1.16370481]
[1768940782455,0.28874559,3007.4,3006.3,1.16370481]
[1768940782662,0.16644,3007.7,3006.3,1.16370481]
[1768940782862,0.28874555,3007.4,3006.3,1.16370481]
[1768940783157,3.33,3008.4,3004.3,14.06410045]
[1768940783158,2.32740962,3006.5,3004.3,14.06410045]
[1768940783459,1.16370481,3006.1,3004.5,2.09376697]
[1768940783656,1.15129138,3006.0,3004.5,2.09376697]
[1768940783857,0.86252785,3005.9,3005.1,2.09106397]
[1768940784065,1.33017481,3007.2,3005.4,2.09106397]
[1768940784262,1.22455418,3007.1,3005.4,2.09106397]
[1768940784464,1.22455418,3007.0,3005.4,2.09106397]
[1768940784665,1.22455418,3006.9,3005.4,2.09106397]
[1768940784861,1.22455418,3006.8,3005.4,2.09106397]
[1768940785060,1.22455418,3006.7,3005.4,2.09106397]
[1768940785262,0.28883181,3006.6,3005.4,2.09106397]
[1768940785455,1.33017481,3007.2,3005.4,2.09106397]
[1768940785764,1.21801068,3007.1,3005.7,2.09106397]
[1768940785966,1.21801068,3007.0,3005.7,2.09106397]
[1768940786164,0.28874654,3006.9,3005.7,2.09106397]
[1768940786360,0.00369121,3007.5,3006.0,2.09106397]
[1768940786560,0.00369121,3007.5,3006.3,2.09106397]
[1768940786561,0.2886775,3007.4,3006.3,2.09106397]
[1768940786766,0.00369121,3007.5,3006.3,2.09106397]
[1768940786966,0.28867034,3007.4,3006.4,2.09106397]
[1768940787167,0.00369121,3007.5,3006.4,2.09106397]
[1768940787367,0.28862162,3007.4,3006.4,2.09106397]
[1768940787570,0.00369121,3007.5,3006.4,2.09106397]
[1768940787863,0.28862162,3007.4,3006.4,2.09106397]
[1768940788168,0.00369121,3007.5,3006.4,2.09106397]
[1768940788371,0.2885613,3007.4,3006.5,2.09106397]
[1768940788668,0.00369121,3007.5,3006.5,2.09106397]
[1768940788856,0.28856379,3007.4,3006.5,2.09106397]
[1768940789055,0.00369121,3007.5,3006.5,2.09106397]
[1768940790067,0.00369121,3007.5,3006.7,2.09106397]
[1768940790368,0.00369121,3007.5,3007.0,2.09106397]
[1768940790564,0.00369121,3007.5,3007.0,10.6337491]
[1768940790763,0.00369121,3007.5,3007.1,10.6337491]
[1768940790959,0.00369121,3007.5,3006.7,8.54501598]
[1768940791162,0.00369121,3007.5,3006.7,10.63607995]
[1768940791771,0.00369121,3007.5,3006.8,2.09106397]
[1768940792971,1.16370481,3007.3,3006.3,2.09106397]
[1768940794066,1.16370481,3007.3,3006.3,2.09462216]
[1768940799571,1.16370481,3007.0,3005.3,1.16370481]
[1768940799879,1.16370481,3007.0,3005.5,8.54268513]
[1768940800176,1.16370481,3007.0,3005.1,3.12478517]
[1768940800177,1.16370481,3006.7,3005.4,3.33]
[1768940800474,1.16370481,3006.7,3005.5,1.928]
[1768940800671,1.16370481,3006.7,3005.5,1.93149274]
[1768940801674,1.16370481,3006.7,3005.5,4.02255671]
[1768940802466,1.16370481,3006.7,3005.5,2.09455671]
[1768940803075,0.16648,3007.0,3005.5,2.09455671]
[1768940803377,1.21468159,3006.9,3005.5,2.09455671]
[1768940803574,1.21468159,3006.8,3005.5,2.09455671]
[1768940803767,1.16370481,3006.9,3005.5,2.09455671]
[1768940803967,1.21469172,3006.8,3005.5,2.09455671]
[1768940804164,1.16370481,3006.9,3005.5,2.09455671]
[1768940804375,1.21460536,3006.8,3005.5,2.09455671]
[1768940804572,0.1665,3006.7,3005.5,2.09455671]
[1768940804779,1.16370481,3006.6,3005.5,0.00349274]
[1768940806179,1.16370481,3006.6,3005.5,1.68197962]
[1768940809788,1.33630542,3006.7,3004.5,4.63668205]
[1768940809975,1.16370481,3005.3,3003.7,2.95819517]
[1768940810281,1.16370481,3005.6,3003.8,3.33]
[1768940810469,1.16370481,3005.6,3004.0,8.54268513]
[1768940810669,0.16655,3005.7,3004.4,8.54268513]
[1768940810878,0.00356112,3005.7,3004.4,0.00241512]
[1768940811077,0.00356112,3005.7,3004.8,8.54268513]
[1768940811466,0.00356112,3005.7,3005.0,8.54268513]
[1768940811675,0.00356112,3005.7,3004.8,8.54268513]
[1768940812081,0.00356112,3005.7,3005.0,8.54268513]
[1768940812273,0.00356112,3005.7,3004.9,8.54268513]
[1768940812781,0.00356112,3005.7,3005.1,8.54268513]
[1768940812979,0.00356112,3005.7,3004.9,8.54268513]
[1768940813181,0.00356112,3005.7,3004.8,8.54268513]
[1768940813575,0.00356112,3005.7,3004.9,8.54268513]
[1768940813775,1.16370481,3005.6,3004.6,8.54268513]
[1768940814086,0.16657,3005.5,3004.4,0.00241512]
[1768940814274,0.16657,3005.5,3004.5,8.54268513]
[1768940814783,0.16657,3005.5,3004.6,8.54268513]
[1768940814988,0.16657,3005.5,3004.5,8.54268513]
[1768940815287,0.16657,3005.5,3004.5,1.67848688]
[1768940815483,0.16657,3005.5,3004.7,8.54268513]
[1768940815987,0.00356112,3005.7,3004.7,8.54268513]
[1768940815988,0.00356112,3005.7,3005.1,8.54268513]
[1768940816282,0.00356112,3005.7,3005.0,8.54268513]
[1768940816483,0.00356112,3005.7,3005.1,8.54268513]
[1768940816885,0.00356112,3005.7,3005.3,8.54268513]
[1768940817082,0.00356112,3005.7,3005.1,8.54268513]
[1768940817378,0.00356112,3005.7,3004.7,1.67848688]
[1768940817581,0.00356112,3005.7,3004.9,8.54268513]
[1768940817979,0.00356112,3005.7,3005.0,8.54268513]
[1768940818175,0.00356112,3005.7,3004.9,8.54268513]
[1768940818579,0.00356112,3005.7,3005.0,8.54268513]
[1768940818781,0.00356112,3005.7,3004.9,8.54268513]
[1768940818984,0.00356112,3005.7,3004.4,0.00241512]
[1768940818985,1.16370481,3005.6,3004.4,0.00241512]
[1768940819183,1.33026481,3005.6,3004.4,8.54510025]
[1768940819486,0.16656,3005.6,3004.6,8.54268513]
[1768940819687,0.16656,3005.6,3004.7,8.54268513]
[1768940819876,0.16656,3005.6,3004.8,8.54268513]
[1768940820279,0.16656,3005.6,3004.9,8.54268513]
[1768940820684,0.16656,3005.6,3005.1,8.54268513]
[1768940820895,0.16656,3005.6,3005.2,8.54268513]
[1768940821079,0.16656,3005.6,3004.9,8.54268513]
[1768940821387,0.00356112,3005.7,3004.6,1.67848688]
[1768940821592,0.00356112,3005.7,3004.9,8.54268513]
[1768940822088,0.00356112,3005.7,3005.1,8.54268513]
[1768940822288,0.00356112,3005.7,3005.2,8.54268513]
[1768940822486,0.00356112,3005.7,3004.9,10.47568513]
[1768940822687,0.00356112,3005.7,3005.1,8.54268513]
[1768940823286,0.00356112,3005.7,3005.2,8.54268513]
[1768940823489,0.00356112,3005.7,3005.1,8.54268513]
[1768940823993,0.00356112,3005.7,3005.2,8.54268513]
[1768940824192,0.00356112,3005.7,3005.1,8.54268513]
[1768940824586,0.00356112,3005.7,3005.2,8.54268513]
[1768940824787,0.00356112,3005.7,3005.1,8.54268513]
[1768940825284,0.00356112,3005.7,3005.2,8.54268513]
[1768940825481,0.00356112,3005.7,3005.1,8.54268513]
[1768940825884,4.28018646,3007.9,3006.6,1.67848688]
[1768940826192,1.71102604,3008.0,3006.1,1.16370481]
[1768940826383,0.16646,3007.4,3006.2,9.46168513]
[1768940826579,0.16646,3007.4,3005.8,1.16370481]
[1768940826783,0.16646,3007.4,3006.3,8.54268513]
[1768940826990,0.16651,3006.6,3004.1,0.16664]
[1768940827293,0.16651,3006.6,3004.6,8.09178513]
[1768940827486,0.16651,3006.6,3005.0,8.09178513]
[1768940827681,0.16651,3006.6,3005.1,1.935]
[1768940827888,0.16651,3006.6,3005.4,8.09178513]
[1768940828294,0.16651,3006.6,3005.6,8.09178513]
[1768940828690,0.16651,3006.6,3005.7,8.09178513]
[1768940828990,0.16651,3006.6,3005.6,8.09178513]
[1768940829392,0.16651,3006.6,3005.7,8.09178513]
[1768940829593,0.16651,3006.6,3005.6,8.09178513]
[1768940830294,0.16651,3006.6,3005.7,8.09178513]
[1768940830489,0.16651,3006.6,3005.6,8.09178513]
[1768940830890,0.16651,3006.6,3005.7,8.09178513]
[1768940831089,0.16651,3006.6,3005.6,8.09178513]
[1768940831490,0.16651,3006.6,3005.7,8.09178513]
[1768940831790,0.16651,3006.6,3005.6,8.09178513]
[1768940832294,0.16651,3006.6,3005.7,8.09178513]
[1768940832594,0.16651,3006.6,3005.6,8.09178513]
[1768940832983,0.16651,3006.6,3005.7,8.09178513]
[1768940833189,0.16651,3006.6,3005.6,8.09178513]
[1768940833594,0.16651,3006.6,3005.7,8.09178513]
[1768940836195,0.16651,3006.6,3005.8,8.09178513]
[1768940836397,0.16651,3006.6,3005.7,8.09178513]
[1768940836885,0.16651,3006.5,3005.8,8.09178513]
[1768940837192,0.16651,3006.5,3005.6,8.09178513]
[1768940837391,0.16651,3006.5,3005.7,8.09178513]
[1768940837593,0.16651,3006.5,3005.8,8.09178513]
[1768940837992,0.16651,3006.5,3005.9,8.09178513]
[1768940838195,0.16651,3006.5,3005.8,8.09178513]
[1768940838688,0.16651,3006.5,3005.9,8.09178513]
[1768940838890,0.16651,3006.5,3005.8,8.09178513]
[1768940839489,0.16651,3006.5,3005.9,8.09178513]
[1768940839688,0.16651,3006.5,3005.8,8.09178513]
[1768940840000,0.16651,3006.5,3006.1,8.09178513]
[1768940840400,0.16651,3006.5,3006.3,7.70867513]
[1768940840699,0.16651,3006.5,3006.0,7.70867513]
[1768940840904,0.16651,3006.5,3005.8,1.937]
[1768940840905,0.16651,3006.5,3005.9,7.70867513]
[1768940841196,0.16651,3006.5,3006.1,7.70867513]
[1768940841584,0.16651,3006.5,3006.2,7.35924513]
[1768940841788,0.16651,3006.5,3006.1,7.35924513]
[1768940841988,0.16651,3006.5,3005.9,7.35924513]
[1768940842500,0.16651,3006.5,3006.1,7.35924513]
[1768940842984,0.16651,3006.5,3006.2,7.35924513]
[1768940843188,0.16651,3006.5,3006.1,7.35924513]
[1768940843598,0.16651,3006.5,3006.2,7.35924513]
[1768940843793,0.16651,3006.5,3006.1,7.35924513]
[1768940844705,0.16651,3006.5,3006.3,7.35924513]
[1768940844998,0.16651,3006.5,3006.1,7.35924513]
[1768940845389,0.16651,3006.5,3006.3,7.35924513]
[1768940845597,0.16651,3006.5,3006.1,7.35924513]
[1768940845999,0.16651,3006.5,3006.3,7.35924513]
[1768940846199,0.16651,3006.5,3006.1,7.35924513]
[1768940846415,0.01101372,3006.3,3006.2,7.35924513]
[1768940846902,0.16651,3006.5,3006.2,7.35924513]
[1768940847108,0.01609708,3006.3,3005.8,3.10085802]
[1768940847403,0.01609708,3006.3,3006.2,7.35924513]
[1768940848904,0.16648,3007.0,3006.2,7.35924513]
[1768940849111,2.05127166,3006.9,3006.3,7.35924513]
[1768940849308,1.16385802,3006.9,3006.2,7.35924513]
[1768940849904,0.88755771,3006.8,3006.4,7.35924513]
[1768940850102,0.88755771,3006.7,3006.2,9.29824513]
[1768940850398,1.33034802,3006.9,3006.2,9.29824513]
[1768940850703,0.88758974,3006.8,3006.4,7.35924513]
[1768940851004,2.05144776,3006.7,3006.3,7.30096174]
[1768940851200,1.16385802,3006.7,3005.9,7.30096174]
[1768940851498,1.22428,3005.9,3004.6,1.94]
[1768940851703,1.16385802,3005.5,3004.6,1.94]
[1768940852595,1.16385802,3005.5,3004.6,1.94403628]
[1768940852997,0.16655,3005.8,3004.6,1.94403628]
[1768940853198,0.88794841,3005.7,3004.6,1.94403628]
[1768940853404,0.16655,3005.8,3004.6,1.94403628]
[1768940853600,0.88782072,3005.7,3004.6,1.94403628]
[1768940853900,0.16655,3005.8,3004.6,1.94403628]
[1768940854201,0.88782766,3005.7,3004.6,1.94403628]
[1768940854400,0.16655,3005.8,3004.6,1.94403628]
[1768940854601,0.887689,3005.7,3004.6,1.94403628]
[1768940854798,0.16655,3005.8,3004.6,1.94403628]
[1768940855000,0.88768166,3005.7,3004.6,1.94403628]
[1768940855203,0.16655,3005.8,3004.6,1.94403628]
[1768940855400,0.88755821,3005.7,3004.6,1.94403628]
[1768940855701,0.16655,3005.8,3004.6,1.94403628]
[1768940855901,0.88755844,3005.7,3004.6,1.94403628]
[1768940856101,0.16655,3005.8,3004.6,1.94403628]
[1768940856304,0.88755151,3005.7,3004.6,0.00403628]
[1768940856495,0.16655,3005.8,3004.7,1.889]
[1768940856695,0.88780817,3005.7,3004.7,1.889]
[1768940856998,0.16655,3005.8,3004.7,1.889]
[1768940857191,0.88780974,3005.7,3004.7,1.889]
[1768940857396,0.16655,3005.8,3004.7,1.889]
[1768940857592,0.88758551,3005.7,3004.7,1.889]
[1768940857795,0.16655,3005.8,3004.6,0.00403628]
[1768940858000,0.88757648,3005.7,3004.6,1.94403628]
[1768940858304,0.16655,3005.8,3004.6,1.94403628]
[1768940858505,0.88736677,3005.7,3004.6,1.94403628]
[1768940858703,0.16655,3005.8,3004.6,1.94403628]
[1768940858906,0.01255314,3005.2,3004.6,1.94403628]